fUSD/lending_fUSD_20260529
["ID","MTS","AMOUNT","RATE_DAILY","PERIOD"]
[423378864,1780068638000,-1013.41566734,0.00043,120]
[423378886,1780068638000,-1013.41566734,0.00043,120]
[423378911,1780068639000,-649.23399602,0.00043,120]
[423378906,1780068639000,-340.07199809,0.00043,120]
[423378907,1780068639000,-776.08021337,0.00043,120]
[423378909,1780068639000,-1437.14059827,0.00043,120]
[423378908,1780068639000,-2344.18272016,0.00043,120]
[423378910,1780068639000,-531.97115613,0.00043,120]
[423378912,1780068639000,-10000.0,0.00043,120]
[423378904,1780068639000,-2775.26365591,0.00043,120]
[423378913,1780068639000,-2194.25169122,0.00043,120]
[423378915,1780068639000,-2252.92,0.00043,120]
[423378916,1780068639000,-200.0,0.00043,30]
[423378921,1780068639000,-2400.0,0.00043,120]
[423378920,1780068639000,-10000.0,0.00043,120]
[423378923,1780068639000,-1000.0,0.00043,120]
[423378927,1780068639000,-1191.83998859,0.00043,120]
[423378928,1780068639000,-1877.32094295,0.00043,120]
[423378929,1780068639000,-235.39272538,0.00043,120]
[423378914,1780068639000,-297.26998957,0.00043,120]
[423378940,1780068640000,-2000.0,0.00043,90]
[423378938,1780068640000,-2000.0,0.00043,90]
[423378939,1780068640000,-2000.0,0.00043,90]
[423378933,1780068640000,-2000.0,0.00043,90]
[423378936,1780068640000,-2000.0,0.00043,90]
[423378935,1780068640000,-2000.0,0.00043,90]
[423378934,1780068640000,-2000.0,0.00043,90]
[423378937,1780068640000,-2000.0,0.00043,90]
[423378941,1780068640000,-2000.0,0.00043,90]
[423378942,1780068640000,-2000.0,0.00043,90]
[423378945,1780068640000,-1000.0,0.00043,120]
[423378944,1780068640000,-214.77,0.00043,90]
[423378946,1780068640000,-2436.0,0.00043,120]
[423378947,1780068640000,-90093.22123137,0.00043,120]
[423378948,1780068640000,-370.0,0.00043,30]
[423378949,1780068640000,-243.0,0.00043,120]
[423378950,1780068640000,-1456.1,0.00043,120]
[423378951,1780068640000,-394.0266065,0.00043,120]
[423378943,1780068640000,-2000.0,0.00043,90]
[423378962,1780068641000,-1000.0,0.00043,120]
[423378961,1780068641000,-5000.0,0.00043,120]
[423378960,1780068641000,-250000.0,0.00043,30]
[423378957,1780068641000,-153.0,0.00043,120]
[423378958,1780068641000,-1500.0,0.00043,120]
[423378956,1780068641000,-321598.69,0.00043,120]
[423378964,1780068641000,-2500.0,0.00043,30]
[423378959,1780068641000,-1410.85415861,0.00043,120]
[423378963,1780068641000,-1000.0,0.00043,120]
[423378968,1780068641000,-10000.0,0.00043,120]
[423378965,1780068641000,-1737.99,0.00043,30]
[423378967,1780068641000,-2500.0,0.00043,120]
[423378969,1780068641000,-416.77,0.00043,31]
[423378970,1780068641000,-1797.0,0.00043,120]
[423378971,1780068641000,-551.55,0.00043,120]
[423378972,1780068641000,-3642.288909,0.00043,30]
[423378973,1780068641000,-279.0,0.00043,120]
[423378974,1780068641000,-1019.65,0.00043,120]
[423378966,1780068641000,-2139.81840542,0.00043,120]
[423378976,1780068642000,-1781161.64232242,0.00043,120]
[423378975,1780068642000,-1855783.0,0.00043,120]
[423379006,1780068692000,-781.11681078,0.00010562,2]
[423379007,1780068692000,-2251.79,0.00010562,2]
[423379005,1780068692000,-250.0,0.00010524,2]
[423379009,1780068692000,-300.0,0.00010599,2]
[423379008,1780068692000,-535.98768964,0.00010562,2]
[423379010,1780068692000,-658.54436117,0.00010599,2]
[423379012,1780068693000,-130369.48443416,0.000106,2]
[423379011,1780068693000,-541.45563883,0.00010599,2]
[423379032,1780068698000,-160.0,0.00011325,2]
[423379030,1780068698000,-4361.9499,0.00011316,2]
[423379037,1780068698000,-2505.93418917,0.00011435,2]
[423379034,1780068698000,-23348.68793911,0.00011349,2]
[423379029,1780068698000,-2713.9793,0.00011316,2]
[423379031,1780068698000,-2500.0,0.00011324,2]
[423379040,1780068698000,-1307.49833898,0.00011518,2]
[423379033,1780068698000,-44829.52698343,0.00011349,2]
[423379041,1780068698000,-250.0,0.00011534,2]
[423379039,1780068698000,-150.0,0.00011515,2]
[423379042,1780068698000,-250.0,0.00011618,2]
[423379043,1780068698000,-1298.12,0.0001163,2]
[423379046,1780068698000,-1680.0,0.00011659,2]
[423379035,1780068698000,-2862.47183378,0.000114,2]
[423379036,1780068698000,-1124.09990662,0.00011416,2]
[423379028,1780068698000,-4175.2365,0.00011316,2]
[423379027,1780068698000,-215.5484138,0.00011313,2]
[423379014,1780068698000,-1000.0,0.00010604,2]
[423379015,1780068698000,-1600.0,0.00010604,2]
[423379013,1780068698000,-2369630.51556584,0.000106,2]
[423379017,1780068698000,-2803.73032217,0.000109,2]
[423379016,1780068698000,-1605370.55628387,0.000107,2]
[423379018,1780068698000,-150.0,0.00010959,2]
[423379038,1780068698000,-163.54,0.00011514,2]
[423379026,1780068698000,-157.69,0.00011286,2]
[423379020,1780068698000,-17259.14,0.00010975,2]
[423379022,1780068698000,-44829.52698343,0.00011099,2]
[423379019,1780068698000,-9999.99,0.00010959,2]
[423379024,1780068698000,-23348.68793911,0.00011099,2]
[423379025,1780068698000,-1143.132,0.00011286,2]
[423379048,1780068698000,-23348.68793911,0.0001167,2]
[423379023,1780068698000,-23348.68793911,0.00011099,2]
[423379044,1780068698000,-299.99,0.0001163,2]
[423379021,1780068698000,-44829.52698344,0.00011099,2]
[423379047,1780068698000,-44829.52698343,0.0001167,2]
[423379071,1780068698000,-3802.44,0.00012329,2]
[423379067,1780068698000,-152.0,0.00012207,2]
[423379064,1780068698000,-152.0,0.00012203,2]
[423379068,1780068698000,-153.9,0.00012237,2]
[423379073,1780068698000,-153.9,0.00012446,2]
[423379076,1780068698000,-4033.89,0.00012551,2]
[423379066,1780068698000,-152.0,0.00012207,2]
[423379074,1780068698000,-311.55362319,0.000125,2]
[423379075,1780068698000,-153.9,0.00012551,2]
[423379078,1780068698000,-1485.14,0.00012551,2]
[423379077,1780068698000,-500.0,0.00012551,2]
[423379081,1780068698000,-23348.68793911,0.00012634,2]
[423379082,1780068698000,-153.9,0.00012655,2]
[423379045,1780068698000,-487.5231891,0.0001163,2]
[423379080,1780068698000,-44829.52698343,0.00012634,2]
[423379072,1780068698000,-153.9,0.00012341,2]
[423379079,1780068698000,-1316.34,0.00012551,2]
[423379070,1780068698000,-23348.68793911,0.00012313,2]
[423379049,1780068698000,-391.0,0.00011733,2]
[423379063,1780068698000,-152.0,0.00012203,2]
[423379051,1780068698000,-5000.0,0.0001177,2]
[423379060,1780068698000,-150.0,0.00012017,2]
[423379053,1780068698000,-2600.0,0.000118,4]
[423379055,1780068698000,-153.9,0.00011923,2]
[423379052,1780068698000,-1566.0,0.0001178,2]
[423379059,1780068698000,-23348.68793911,0.00011991,2]
[423379054,1780068698000,-3200.0,0.000119,4]
[423379057,1780068698000,-1600.0,0.00011929,2]
[423379056,1780068698000,-2000.0,0.00011929,2]
[423379062,1780068698000,-153.9,0.00012132,2]
[423379058,1780068698000,-44829.52698343,0.00011991,2]
[423379061,1780068698000,-153.9,0.00012028,2]
[423379050,1780068698000,-648.0,0.00011757,2]
[423379069,1780068698000,-44829.52698343,0.00012313,2]
[423379124,1780068699000,-507.98,0.00013698,2]
[423379119,1780068699000,-500.0,0.00013698,2]
[423379122,1780068699000,-500.0,0.00013698,2]
[423379133,1780068699000,-500.0,0.00013698,2]
[423379116,1780068699000,-500.0,0.00013698,2]
[423379115,1780068699000,-500.0,0.00013698,2]
[423379112,1780068699000,-500.0,0.00013698,2]
[423379111,1780068699000,-23348.68793911,0.00013598,2]
[423379118,1780068699000,-500.0,0.00013698,2]
[423379110,1780068699000,-44829.52698343,0.00013598,2]
[423379117,1780068699000,-500.0,0.00013698,2]
[423379120,1780068699000,-500.0,0.00013698,2]
[423379127,1780068699000,-500.0,0.00013698,2]
[423379121,1780068699000,-560.55,0.00013698,2]
[423379126,1780068699000,-500.0,0.00013698,2]
[423379125,1780068699000,-500.0,0.00013698,2]
[423379129,1780068699000,-500.0,0.00013698,2]
[423379128,1780068699000,-500.0,0.00013698,2]
[423379130,1780068699000,-500.0,0.00013698,2]
[423379134,1780068699000,-500.0,0.00013698,2]
[423379132,1780068699000,-500.0,0.00013698,2]
[423379135,1780068699000,-500.0,0.00013698,2]
[423379131,1780068699000,-500.0,0.00013698,2]
[423379109,1780068699000,-1500000.0,0.00013499,2]
[423379123,1780068699000,-500.0,0.00013698,2]
[423379107,1780068699000,-150.0,0.00013488,2]
[423379090,1780068699000,-153.9,0.00012969,2]
[423379106,1780068699000,-150.0,0.00013488,2]
[423379083,1780068699000,-153.9,0.0001276,2]
[423379087,1780068699000,-166.66,0.00012927,2]
[423379092,1780068699000,-13959.93260184,0.00013,15]
[423379085,1780068699000,-153.9,0.00012864,2]
[423379093,1780068699000,-2993.07851107,0.0001305,2]
[423379086,1780068699000,-600.0,0.000129,4]
[423379084,1780068699000,-2351.0,0.00012825,2]
[423379088,1780068699000,-44829.52698343,0.00012955,2]
[423379091,1780068699000,-23932.08898017,0.00013,5]
[423379089,1780068699000,-23348.68793911,0.00012955,2]
[423379094,1780068699000,-153.9,0.00013073,2]
[423379108,1780068699000,-151.0,0.00013496,2]
[423379096,1780068699000,-432.933286,0.00013229,2]
[423379098,1780068699000,-1600.0,0.00013255,2]
[423379099,1780068699000,-44829.52698343,0.00013277,2]
[423379100,1780068699000,-23348.68793911,0.00013277,2]
[423379095,1780068699000,-153.9,0.00013178,2]
[423379102,1780068699000,-2803.73032214,0.00013467,2]
[423379103,1780068699000,-150.0,0.00013488,2]
[423379101,1780068699000,-166.66,0.00013354,2]
[423379104,1780068699000,-150.0,0.00013488,2]
[423379114,1780068699000,-500.0,0.00013698,2]
[423379113,1780068699000,-500.0,0.00013698,2]
[423379105,1780068699000,-150.0,0.00013488,2]
[423379097,1780068699000,-2000.0,0.00013255,2]
[423379145,1780068699000,-500.0,0.00013698,2]
[423379151,1780068699000,-500.0,0.00013698,2]
[423379142,1780068699000,-500.0,0.00013698,2]
[423379165,1780068699000,-3292.0,0.00014107,2]
[423379164,1780068699000,-250.0,0.00014,2]
[423379171,1780068699000,-150.0,0.00014487,2]
[423379179,1780068699000,-150.0,0.00014986,2]
[423379170,1780068699000,-166.66,0.00014384,2]
[423379181,1780068699000,-216.7495323,0.00014986,2]
[423379173,1780068699000,-1600.0,0.0001458,2]
[423379172,1780068699000,-2000.0,0.0001458,2]
[423379178,1780068699000,-550.595655,0.000148,2]
[423379174,1780068699000,-166.66,0.00014634,2]
[423379176,1780068699000,-326.522075,0.000147,2]
[423379168,1780068699000,-1839.27973392,0.0001421,7]
[423379175,1780068699000,-5878.17074011,0.0001465,2]
[423379185,1780068699000,-4609.0,0.00015518,2]
[423379184,1780068699000,-176.17,0.00015068,2]
[423379186,1780068699000,-151.36,0.000159,2]
[423379182,1780068699000,-2503957.58463633,0.00015,2]
[423379187,1780068699000,-864.22,0.000159,2]
[423379188,1780068699000,-2000.0,0.00015906,2]
[423379190,1780068699000,-151.0,0.00016,4]
[423379183,1780068699000,-166.66,0.00015061,2]
[423379189,1780068699000,-1600.0,0.00015906,2]
[423379191,1780068699000,-300.0,0.00016,2]
[423379138,1780068699000,-500.0,0.00013698,2]
[423379177,1780068699000,-1328.383992,0.000147,2]
[423379162,1780068699000,-150.0,0.00013987,2]
[423379180,1780068699000,-150.0,0.00014986,2]
[423379167,1780068699000,-166.66,0.00014207,2]
[423379140,1780068699000,-500.0,0.00013698,2]
[423379161,1780068699000,-166.66,0.00013973,2]
[423379136,1780068699000,-500.0,0.00013698,2]
[423379143,1780068699000,-500.0,0.00013698,2]
[423379141,1780068699000,-500.0,0.00013698,2]
[423379144,1780068699000,-587.82,0.00013698,2]
[423379146,1780068699000,-565.72873569,0.00013698,2]
[423379137,1780068699000,-500.0,0.00013698,2]
[423379148,1780068699000,-479.18442925,0.00013698,2]
[423379158,1780068699000,-166.66,0.00013781,2]
[423379150,1780068699000,-500.0,0.00013698,2]
[423379149,1780068699000,-500.0,0.00013698,2]
[423379139,1780068699000,-541.23,0.00013698,2]
[423379163,1780068699000,-370.41278874,0.0001399,2]
[423379147,1780068699000,-500.0,0.00013698,2]
[423379166,1780068699000,-166.66,0.0001411,2]
[423379159,1780068699000,-166.66,0.00013836,2]
[423379169,1780068699000,-166.66,0.00014247,2]
[423379152,1780068699000,-500.0,0.00013698,2]
[423379160,1780068699000,-250.0,0.00013855,2]
[423379155,1780068699000,-200.0,0.00013699,2]
[423379154,1780068699000,-500.0,0.00013698,2]
[423379157,1780068699000,-813.17,0.000137,2]
[423379153,1780068699000,-500.0,0.00013698,2]
[423379156,1780068699000,-166.66,0.00013699,2]
[423379232,1780068700000,-2886.66323601,0.0002,2]
[423379235,1780068700000,-395.0,0.0002,2]
[423379234,1780068700000,-400.0,0.0002,2]
[423379238,1780068700000,-2000.0,0.0002,7]
[423379239,1780068700000,-200.0,0.0002,2]
[423379227,1780068700000,-2183.0,0.0002,2]
[423379225,1780068700000,-803.0,0.0002,2]
[423379226,1780068700000,-5349.0,0.0002,2]
[423379224,1780068700000,-810.0,0.0002,2]
[423379223,1780068700000,-500.0,0.00019965,2]
[423379228,1780068700000,-151.0,0.0002,4]
[423379229,1780068700000,-1492.90350179,0.0002,5]
[423379230,1780068700000,-10537.51094005,0.0002,2]
[423379243,1780068700000,-151.0,0.000202,2]
[423379237,1780068700000,-799.0,0.0002,2]
[423379233,1780068700000,-374.0,0.0002,2]
[423379236,1780068700000,-325.0,0.0002,2]
[423379241,1780068700000,-151.0,0.000202,2]
[423379250,1780068700000,-151.0,0.000202,2]
[423379242,1780068700000,-151.0,0.000202,2]
[423379252,1780068700000,-151.0,0.000202,2]
[423379240,1780068700000,-151.0,0.000202,2]
[423379251,1780068700000,-151.0,0.000202,2]
[423379245,1780068700000,-151.0,0.000202,2]
[423379248,1780068700000,-151.0,0.000202,2]
[423379217,1780068700000,-2688.60241798,0.00019716,2]
[423379231,1780068700000,-6000.0,0.0002,2]
[423379222,1780068700000,-323.22,0.00019965,2]
[423379196,1780068700000,-168.09,0.00016712,2]
[423379220,1780068700000,-2688.60241798,0.00019914,2]
[423379192,1780068700000,-2505.93418914,0.00016064,2]
[423379194,1780068700000,-3827.5,0.00016438,2]
[423379193,1780068700000,-2803.73032214,0.00016227,2]
[423379247,1780068700000,-151.0,0.000202,2]
[423379201,1780068700000,-8153.8,0.00018,2]
[423379195,1780068700000,-159.59031201,0.00016438,7]
[423379198,1780068700000,-151.0,0.00017,4]
[423379199,1780068700000,-6453.0,0.0001707,2]
[423379200,1780068700000,-151.0,0.00018,4]
[423379197,1780068700000,-3802.44,0.00016767,2]
[423379203,1780068700000,-3827.5,0.0001841,2]
[423379202,1780068700000,-350.0,0.00018,2]
[423379204,1780068700000,-9035.0,0.00018777,2]
[423379205,1780068700000,-150.0,0.00018891,3]
[423379206,1780068700000,-600.0,0.000189,6]
[423379214,1780068700000,-2688.60241798,0.00019504,2]
[423379215,1780068700000,-2688.60241798,0.00019681,2]
[423379207,1780068700000,-2803.73032214,0.00018988,2]
[423379209,1780068700000,-151.0,0.00019,4]
[423379211,1780068700000,-150.0,0.00019295,2]
[423379210,1780068700000,-20430.55,0.00019178,2]
[423379208,1780068700000,-1950.30162292,0.00019,2]
[423379212,1780068700000,-2688.60241798,0.00019309,2]
[423379213,1780068700000,-200.0,0.00019351,2]
[423379218,1780068700000,-2688.60241798,0.00019724,2]
[423379216,1780068700000,-150.0,0.00019707,3]
[423379219,1780068700000,-2000.0,0.00019866,2]
[423379221,1780068700000,-2688.60241798,0.00019944,2]
[423379246,1780068700000,-151.0,0.000202,2]
[423379256,1780068700000,-151.0,0.000202,2]
[423379249,1780068700000,-151.0,0.000202,2]
[423379286,1780068700000,-2383.16728669,0.00021918,2]
[423379277,1780068700000,-395.0,0.00021,2]
[423379280,1780068700000,-778.56,0.00021,2]
[423379287,1780068700000,-5000.0,0.00021918,2]
[423379283,1780068700000,-58418.47841133,0.000215,2]
[423379290,1780068700000,-813.17,0.00022,7]
[423379294,1780068700000,-2183.0,0.00022,2]
[423379292,1780068700000,-803.0,0.00022,2]
[423379299,1780068700000,-799.0,0.00022,2]
[423379291,1780068700000,-810.0,0.00022,2]
[423379293,1780068700000,-5349.0,0.00022,2]
[423379300,1780068700000,-200.0,0.00022,2]
[423379281,1780068700000,-200.0,0.00021,2]
[423379298,1780068700000,-325.0,0.00022,2]
[423379301,1780068700000,-200.0,0.00022152,2]
[423379296,1780068700000,-450.0,0.00022,2]
[423379297,1780068700000,-395.0,0.00022,2]
[423379244,1780068700000,-151.0,0.000202,2]
[423379302,1780068700000,-2000.0,0.00022222,7]
[423379304,1780068700000,-933.75,0.00022466,2]
[423379305,1780068700000,-1268.03,0.00022466,2]
[423379306,1780068700000,-168.09,0.00022603,2]
[423379307,1780068700000,-200.0,0.00022939,2]
[423379308,1780068700000,-500.0,0.00022999,2]
[423379309,1780068700000,-1000.0,0.00023,20]
[423379310,1780068700000,-2500.0,0.00023,20]
[423379295,1780068700000,-374.0,0.00022,2]
[423379285,1780068700000,-469.99,0.00021783,2]
[423379303,1780068700000,-3827.5,0.00022353,2]
[423379279,1780068700000,-799.0,0.00021,2]
[423379282,1780068700000,-3802.44,0.00021205,2]
[423379254,1780068700000,-151.0,0.000202,2]
[423379253,1780068700000,-151.0,0.000202,2]
[423379264,1780068700000,-2505.93418914,0.00020693,2]
[423379255,1780068700000,-151.0,0.000202,2]
[423379258,1780068700000,-151.0,0.000202,2]
[423379262,1780068700000,-8537.03,0.00020548,2]
[423379261,1780068700000,-813.17,0.000204,2]
[423379263,1780068700000,-4880.0,0.00020654,2]
[423379260,1780068700000,-3827.5,0.00020381,2]
[423379259,1780068700000,-151.0,0.000202,2]
[423379267,1780068700000,-15000.0,0.00021,2]
[423379265,1780068700000,-469.99,0.00020745,2]
[423379257,1780068700000,-151.0,0.000202,2]
[423379276,1780068700000,-374.0,0.00021,2]
[423379278,1780068700000,-325.0,0.00021,2]
[423379269,1780068700000,-15000.0,0.00021,2]
[423379284,1780068700000,-2803.73032214,0.00021748,2]
[423379289,1780068700000,-372.81,0.00021918,2]
[423379275,1780068700000,-197.24830464,0.00021,4]
[423379274,1780068700000,-2183.0,0.00021,2]
[423379288,1780068700000,-1006.5,0.00021918,2]
[423379273,1780068700000,-5349.0,0.00021,2]
[423379272,1780068700000,-803.0,0.00021,2]
[423379271,1780068700000,-810.0,0.00021,2]
[423379270,1780068700000,-6111.0,0.00021,2]
[423379268,1780068700000,-6111.0,0.00021,2]
[423379266,1780068700000,-500.0,0.00020999,2]
[423379329,1780068701000,-3600.0,0.00024,2]
[423379337,1780068701000,-152.0,0.00024094,3]
[423379335,1780068701000,-799.0,0.00024,2]
[423379352,1780068701000,-233.82,0.00024658,2]
[423379336,1780068701000,-200.0,0.00024,2]
[423379339,1780068701000,-3060.09,0.00024174,2]
[423379338,1780068701000,-1323.07,0.00024174,2]
[423379341,1780068701000,-5912.44,0.00024174,2]
[423379344,1780068701000,-209.09056759,0.000243,7]
[423379343,1780068701000,-10785.48752526,0.0002429,7]
[423379345,1780068701000,-3827.5,0.00024324,2]
[423379347,1780068701000,-2803.73032214,0.00024509,2]
[423379342,1780068701000,-3759.74472052,0.0002421,2]
[423379346,1780068701000,-2000.0,0.00024444,7]
[423379348,1780068701000,-200.0,0.00024512,2]
[423379350,1780068701000,-959.03,0.00024658,2]
[423379331,1780068701000,-500.0,0.00024,2]
[423379340,1780068701000,-380.46,0.00024174,2]
[423379332,1780068701000,-374.0,0.00024,2]
[423379313,1780068701000,-803.0,0.00023,2]
[423379333,1780068701000,-395.0,0.00024,2]
[423379311,1780068701000,-2500.0,0.00023,20]
[423379312,1780068701000,-810.0,0.00023,2]
[423379318,1780068701000,-325.0,0.00023,2]
[423379315,1780068701000,-2183.0,0.00023,2]
[423379317,1780068701000,-395.0,0.00023,2]
[423379316,1780068701000,-374.0,0.00023,2]
[423379320,1780068701000,-200.0,0.00023,2]
[423379321,1780068701000,-200.0,0.00023725,2]
[423379334,1780068701000,-325.0,0.00024,2]
[423379314,1780068701000,-5349.0,0.00023,2]
[423379324,1780068701000,-219.0,0.00023814,2]
[423379323,1780068701000,-150.0,0.00023814,2]
[423379319,1780068701000,-799.0,0.00023,2]
[423379325,1780068701000,-810.0,0.00024,2]
[423379326,1780068701000,-803.0,0.00024,2]
[423379327,1780068701000,-5349.0,0.00024,2]
[423379328,1780068701000,-2183.0,0.00024,2]
[423379330,1780068701000,-27180.26776259,0.00024,2]
[423379322,1780068701000,-280.0,0.00023814,2]
[423379351,1780068701000,-1000.0,0.00024658,2]
[423379360,1780068701000,-812.87480393,0.00025,2]
[423379358,1780068701000,-500.0,0.00024932,2]
[423379376,1780068701000,-2505.93418914,0.00025323,2]
[423379373,1780068701000,-500.0,0.00025071,2]
[423379377,1780068701000,-1307.49833898,0.00025377,2]
[423379378,1780068701000,-3802.44,0.00025644,2]
[423379381,1780068701000,-1323.07,0.00025786,2]
[423379379,1780068701000,-152.0,0.00025724,5]
[423379382,1780068701000,-3060.09,0.00025786,2]
[423379380,1780068701000,-212.89,0.00025739,7]
[423379383,1780068701000,-380.46,0.00025786,2]
[423379387,1780068701000,-813.17,0.00026,7]
[423379388,1780068701000,-833.40594009,0.00026,2]
[423379389,1780068701000,-500.0,0.00026,2]
[423379391,1780068701000,-5275.76938366,0.00026078,2]
[423379390,1780068701000,-550.0,0.00026,2]
[423379393,1780068701000,-5000.0,0.00026078,2]
[423379392,1780068701000,-5000.0,0.00026078,2]
[423379349,1780068701000,-372.81,0.00024658,6]
[423379375,1780068701000,-200.0,0.00025299,2]
[423379385,1780068701000,-500.0,0.00025823,2]
[423379386,1780068701000,-1109.07173699,0.00025866,2]
[423379384,1780068701000,-5912.44,0.00025786,2]
[423379374,1780068701000,-228.76416761,0.00025145,2]
[423379359,1780068701000,-500.0,0.00024932,2]
[423379353,1780068701000,-212.89,0.00024658,2]
[423379354,1780068701000,-500.0,0.00024899,2]
[423379357,1780068701000,-500.0,0.00024932,2]
[423379355,1780068701000,-152.0,0.00024909,4]
[423379366,1780068701000,-379112.02586341,0.00025,2]
[423379364,1780068701000,-313.60822115,0.00025,2]
[423379362,1780068701000,-5359.83711925,0.00025,2]
[423379356,1780068701000,-500.0,0.00024932,2]
[423379361,1780068701000,-806.26087713,0.00025,2]
[423379365,1780068701000,-56288.56973458,0.00025,7]
[423379369,1780068701000,-410.09335718,0.00025,2]
[423379367,1780068701000,-209.09056759,0.00025,7]
[423379363,1780068701000,-2191.62423566,0.00025,2]
[423379370,1780068701000,-327.79598337,0.00025,2]
[423379372,1780068701000,-200.0,0.00025,2]
[423379368,1780068701000,-380.96874582,0.00025,2]
[423379371,1780068701000,-815.0,0.00025,2]
[423379444,1780068702000,-213.0,0.00028082,2]
[423379434,1780068702000,-643.0,0.00028,2]
[423379437,1780068702000,-150.0,0.00028033,2]
[423379431,1780068702000,-22142.45254127,0.00028,5]
[423379425,1780068702000,-150.0,0.00027972,2]
[423379432,1780068702000,-576.8097954,0.00028,2]
[423379426,1780068702000,-150.0,0.00027972,2]
[423379423,1780068702000,-212.89,0.00027902,2]
[423379429,1780068702000,-150.0,0.00027972,2]
[423379438,1780068702000,-150.0,0.00028081,2]
[423379428,1780068702000,-150.0,0.00027972,2]
[423379430,1780068702000,-206.0,0.00027972,2]
[423379441,1780068702000,-150.0,0.00028081,2]
[423379449,1780068702000,-1000.0,0.00028082,3]
[423379445,1780068702000,-302.46,0.00028082,2]
[423379442,1780068702000,-200.0,0.00028081,2]
[423379433,1780068702000,-160.0,0.00028,2]
[423379435,1780068702000,-209.09056759,0.00028,10]
[423379439,1780068702000,-150.0,0.00028081,2]
[423379440,1780068702000,-150.0,0.00028081,2]
[423379447,1780068702000,-1000.0,0.00028082,3]
[423379457,1780068702000,-1225.0,0.00028281,2]
[423379446,1780068702000,-356.73298615,0.00028082,2]
[423379448,1780068702000,-1000.0,0.00028082,3]
[423379450,1780068702000,-1000.0,0.00028082,3]
[423379427,1780068702000,-150.0,0.00027972,2]
[423379436,1780068702000,-600.0,0.00028,2]
[423379424,1780068702000,-360.777739,0.00027922,14]
[423379407,1780068702000,-150.0,0.00027083,22]
[423379421,1780068702000,-409.0,0.00027671,2]
[423379397,1780068702000,-3827.5,0.00026296,2]
[423379394,1780068702000,-5000.0,0.00026078,2]
[423379396,1780068702000,-200.0,0.00026086,2]
[423379395,1780068702000,-5000.0,0.00026078,2]
[423379399,1780068702000,-152.0,0.0002654,6]
[423379409,1780068702000,-300.0,0.00027144,10]
[423379403,1780068702000,-212.89,0.0002682,30]
[423379400,1780068702000,-500.0,0.00026597,2]
[423379451,1780068702000,-1000.0,0.00028082,3]
[423379406,1780068702000,-960.36867786,0.00027,5]
[423379404,1780068702000,-200.0,0.00026873,2]
[423379401,1780068702000,-5664.52,0.00026666,14]
[423379398,1780068702000,-500.0,0.00026432,2]
[423379408,1780068702000,-1200.0,0.00027144,10]
[423379405,1780068702000,-2000.0,0.00027,14]
[423379402,1780068702000,-2000.0,0.00026667,7]
[423379419,1780068702000,-50339.39,0.000274,14]
[423379410,1780068702000,-2803.73032214,0.00027269,2]
[423379418,1780068702000,-28732.14,0.00027397,10]
[423379416,1780068702000,-1000.0,0.00027397,20]
[423379412,1780068702000,-500.0,0.00027395,2]
[423379414,1780068702000,-372.81,0.00027397,15]